fUST/lending_fUST_20251002
["ID","MTS","AMOUNT","RATE_DAILY","PERIOD"]
[388837549,1759410551916,-10000.01,0.00017784,2]
[388837550,1759410552036,-10000.01,0.00017784,2]
[388837551,1759410555451,-10000.01,0.00017784,2]
[388837552,1759410555562,-10000.01,0.00017784,2]
[388837553,1759410555699,-10000.01,0.00017784,2]
[388837554,1759410555822,-10000.01,0.00017784,2]
[388837555,1759410555988,-10000.01,0.00017784,2]
[388837556,1759410556192,-10000.01,0.00017784,2]
[388837557,1759410562721,-5000.0,0.00017606,14]
[388837558,1759410562789,-0.01,0.00017784,2]
[388837559,1759410562806,-10000.01,0.00017784,2]
[388837560,1759410562822,-10000.01,0.00017784,2]
[388837562,1759410564811,-15228.48543823,0.00017784,2]
[388837563,1759410564837,-500.0,0.000179,2]
[388837564,1759410564860,-16140.8557093,0.0001799,2]
[388837565,1759410564885,-600.0,0.0001824,2]
[388837567,1759410564908,-150.0,0.00018373,2]
[388837568,1759410564932,-302.0,0.00018488,2]
[388837569,1759410564955,-150.0,0.00018873,2]
[388837570,1759410564978,-276.13814562,0.00019,2]
[388837571,1759410565001,-343.88792797,0.00019,2]
[388837572,1759410565024,-1103.44802989,0.00019,2]
[388837573,1759410565047,-5336.44477621,0.00019079,2]
[388837574,1759410565070,-150.0,0.00019373,2]
[388837575,1759410565093,-420.0,0.00019408,2]
[388837576,1759410565116,-1114.0,0.00019598,2]
[388837577,1759410565139,-1427.95171339,0.00019689,2]
[388837578,1759410565166,-410.0,0.00019744,2]
[388837579,1759410565190,-150.0,0.00019873,2]
[388837580,1759410565212,-1427.95171339,0.00019904,2]
[388837581,1759410566710,5000.0,0.00020009,2]
[388837674,1759410631865,-170.79872179,0.00019549,2]
[388837676,1759410631874,-170.79872179,0.00019746,2]
[388837678,1759410631884,-150.0,0.00019746,2]
[388837679,1759410631894,-5000.0,0.00019845,14]
[388837681,1759410631903,-410.0,0.00019957,2]
[388837683,1759410631912,-300.0,0.0002,2]
[388837685,1759410631923,-300.0,0.0002,2]
[388837688,1759410631933,-300.0,0.0002,2]
[388837689,1759410631943,-979.0,0.00020046,2]
[388837691,1759410631953,-630.0,0.00020046,2]
[388837693,1759410631963,-808.3568994,0.00020163,2]
[388837695,1759410631974,-160.0,0.00020218,2]
[388837697,1759410631983,-300.0,0.00020226,2]
[388837700,1759410631993,-293.43242757,0.00020227,2]
[388837701,1759410632003,-160.0,0.00020227,2]
[388837703,1759410632013,-234.00747223,0.00020227,2]
[388837705,1759410632023,-160.0,0.00020227,2]
[388837708,1759410632033,-500.0,0.000203,2]
[388837710,1759410632047,-500.0,0.000203,2]
[388837712,1759410632058,-500.0,0.000203,2]
[388837714,1759410632068,-500.0,0.000203,2]
[388837716,1759410632078,-500.0,0.000203,2]
[388837718,1759410632088,-504.77341385,0.000203,2]
[388837720,1759410632099,-347.70376496,0.000203,2]
[388837722,1759410632108,-613.83341633,0.00020483,2]
[388837724,1759410632119,-500.0,0.00020483,2]
[388837726,1759410632129,-500.0,0.0002052,2]
[388837728,1759410632140,-500.0,0.0002055,2]
[388837730,1759410632152,-509.65861283,0.00020625,2]
[388837732,1759410632161,-500.0,0.00020625,2]
[388837735,1759410632171,-500.0,0.00020625,2]
[388837737,1759410632180,-150.0,0.00020746,2]
[388837740,1759410632191,-1000.0,0.00020848,2]
[388837742,1759410632200,-409.29684884,0.00020848,2]
[388837744,1759410632210,-510.09024853,0.00021031,2]
[388837746,1759410632221,-600.0,0.00021035,2]
[388837749,1759410632231,-1000.0,0.00021068,2]
[388837751,1759410632240,-168.0,0.00021106,2]
[388837753,1759410632249,-1000.0,0.00021173,2]
[388837755,1759410632264,-150.0,0.00021246,2]
[388837758,1759410632280,-1000.0,0.00021396,2]
[388837761,1759410632290,-464.71334271,0.00021873,2]
[388837763,1759410632299,-500.0,0.00021873,2]
[388837765,1759410632310,-502.18387094,0.00021873,2]
[388837767,1759410632319,-500.0,0.00021873,2]
[388837769,1759410632328,-3000.0,0.000219,2]
[388837771,1759410632338,-3000.0,0.0002191,2]
[388837773,1759410632348,-272.7614036,0.00021918,7]
[388837775,1759410632357,-3000.0,0.0002192,2]
[388837777,1759410632367,-3000.0,0.0002193,2]
[388837779,1759410632376,-500.0,0.00021933,2]
[388837781,1759410632385,-3000.0,0.0002194,2]
[388837783,1759410632395,-3000.0,0.0002195,2]
[388837785,1759410632405,-3000.0,0.0002196,2]
[388837787,1759410632414,-2770.70348663,0.0002197,2]
[388837889,1759410637809,-300.0,0.0002,2]
[388837890,1759410637820,-229.29651337,0.0002175,2]
[388837891,1759410637830,-229.29651337,0.0002197,2]
[388837892,1759410637840,-2.05977169,0.00021972,2]
[388837893,1759410637866,-497.94022831,0.00021972,2]
[388837894,1759410637875,-500.0,0.00021972,2]
[388837895,1759410637885,-141.87266289,0.00021972,2]
[388837897,1759410637896,-358.12733711,0.00021972,2]
[388837899,1759410637906,-500.0,0.00021972,2]
[388837901,1759410637916,-150.0,0.00021972,2]
[388837903,1759410637926,-60.77280635,0.00021972,2]
[388838027,1759410639790,-1199.68496837,0.00021818,2]
[388838028,1759410639800,-439.22719365,0.00021972,2]
[388838029,1759410639809,-500.0,0.00021972,2]
[388838030,1759410639819,-3000.0,0.0002198,2]
[388838033,1759410639829,-3000.0,0.0002199,2]
[388838034,1759410639839,-3000.0,0.00022,2]
[388838036,1759410639849,-1459.10083998,0.0002201,2]
[388838038,1759410639860,-1540.89916002,0.0002201,2]
[388838039,1759410639870,-420.0,0.00022019,2]
[388838040,1759410639879,-4715.29034615,0.0002202,2]
[388838041,1759410639902,-918.07273685,0.0002202,2]
[388838042,1759410639911,-117.02566457,0.00022071,2]
[388838080,1759410643025,378.0,0.00020409,120]
[388838236,1759410644595,378.0,0.0002143,120]
[388838262,1759410645641,378.0,0.00022501,120]
[388838263,1759410645891,-1308.51999996,0.0002185,2]
[388838264,1759410645902,-2.40604886,0.0002185,2]
[388838265,1759410645912,-1310.92604882,0.00022071,2]
[388838266,1759410645921,-72.32948151,0.00022109,2]
[388838267,1759410645933,-229.20269987,0.00022109,2]
[388838268,1759410645943,-160.0,0.00022125,2]
[388838269,1759410645952,-245.52280723,0.00022137,7]
[388838270,1759410645961,-168.0,0.00022177,2]
[388838271,1759410645970,-1225.31269445,0.00022196,2]
[388838273,1759410645987,-486.4791642,0.00017882,7]
[388838275,1759410645997,-202.63901894,0.00022196,2]
[388838277,1759410646006,-150.0,0.00022246,2]
[388838279,1759410646016,-500.0,0.0002225,2]
[388838281,1759410646025,-150.0,0.00022275,2]
[388838282,1759410646034,-168.0,0.00022327,2]
[388838283,1759410646043,-150.0,0.00022402,2]
[388838285,1759410646052,-245.52280723,0.00022411,7]
[388838287,1759410646061,-500.0,0.00022414,2]
[388838289,1759410646071,-1001.44660787,0.00022421,2]
[388838291,1759410646081,-669.72419038,0.00022421,2]
[388838293,1759410646090,-500.0,0.00022478,2]
[388838294,1759410646099,-503.27442745,0.00022481,2]
[388838296,1759410646108,-1000.0,0.0002252,2]
[388838298,1759410646118,-1000.0,0.0002252,2]
[388838300,1759410646127,-1000.0,0.0002252,2]
[388838302,1759410646137,-1000.0,0.0002252,2]
[388838304,1759410646150,-1000.0,0.0002252,2]
[388838306,1759410646159,-150.0,0.00022529,2]
[388838308,1759410646168,-1427.95171339,0.00022644,2]
[388838310,1759410646178,-83.04990193,0.00022657,2]
[388838388,1759410646937,378.0,0.00023626,120]
[388838524,1759410648264,378.0,0.00024807,120]
[388838533,1759410649507,378.0,0.00026048,120]
[388838534,1759410650879,378.0,0.0002735,120]
[388838535,1759410652131,378.0,0.00028718,120]
[388838536,1759410769034,150.5,0.00021959,120]
[388838537,1759410769660,221.72,0.00021949,120]
[388838538,1759410863165,500.0,0.00027397,120]
[388838539,1759410866730,-5000.0,0.00017245,14]
[388838540,1759410869130,0.01,0.00017245,2]
[388838541,1759410869154,4999.99,0.00017245,2]
[388838542,1759410869364,-170.79872179,0.00017319,2]
[388838543,1759410869385,-713.45100429,0.00017419,14]
[388838544,1759410871760,-300.0,0.00017419,14]
[388838545,1759410873758,-300.0,0.00017419,14]
[388838546,1759410875663,-1356.91496575,0.00017419,14]
[388838547,1759410885335,666.0,0.00016784,2]
[388838548,1759410893487,5000.0,0.00017419,2]
[388838550,1759410913239,-420.0,0.00017594,2]
[388838551,1759410915585,1620.1800685,0.00017419,2]
[388838552,1759410915608,3379.8199315,0.00017419,2]
[388838553,1759410923332,-4580.0,0.00017594,2]
[388838554,1759410923356,-1049.72434735,0.00017674,2]
[388838555,1759410923382,-1200.0,0.00017772,2]
[388838556,1759410923407,-300.0,0.00017772,2]
[388838557,1759410923432,-300.0,0.00017772,2]
[388838558,1759410923457,-300.0,0.00017772,2]
[388838559,1759410923496,-300.0,0.00017772,2]
[388838560,1759410923527,-1200.0,0.00017772,2]
[388838561,1759410923555,-300.0,0.00017772,2]
[388838562,1759410923583,-500.0,0.00017773,2]
[388838563,1759410923610,-500.0,0.00017773,2]
[388838564,1759410923639,-500.0,0.00017773,2]
[388838565,1759410923666,-500.0,0.00017773,2]
[388838566,1759410923696,-207.63231706,0.00017773,2]
[388838567,1759410923722,-500.0,0.00017773,2]
[388838568,1759410923754,-502.78880425,0.00017773,2]
[388838569,1759410923780,-500.0,0.00017773,2]
[388838570,1759410923807,-635.4633957,0.00017773,2]
[388838571,1759410923833,-500.0,0.00017773,2]
[388838572,1759410923858,-500.0,0.00017773,2]
[388838573,1759410923884,-502.26452921,0.00017773,2]
[388838574,1759410923910,-500.0,0.00017773,2]
[388838575,1759410923936,-500.0,0.00017773,2]
[388838576,1759410923961,-500.0,0.00017773,2]
[388838577,1759410923987,-500.0,0.00017773,2]
[388838578,1759410924012,-500.0,0.00017773,2]
[388838579,1759410924037,-500.0,0.00017773,2]
[388838580,1759410924063,-500.0,0.00017773,2]
[388838581,1759410924087,-500.0,0.00017773,2]
[388838582,1759410924113,-500.0,0.00017773,2]
[388838583,1759410924139,-500.0,0.00017773,2]
[388838584,1759410924165,-204.83771442,0.00017773,2]
[388838585,1759410924196,-12474.0489269,0.00017773,2]
[388838586,1759410924223,-538.21,0.00017774,3]
[388838587,1759410924252,-269.11,0.00017774,3]
[388838588,1759410924280,-807.34,0.00017774,3]
[388838589,1759410924306,-500.0,0.00017783,2]
[388838590,1759410924332,-325.15839542,0.00017783,2]
[388838591,1759410924358,-532.38834013,0.00017783,2]
[388838592,1759410924383,-551.76498483,0.00017783,2]
[388838593,1759410924407,-500.0,0.00017783,2]
[388838594,1759410924431,-500.0,0.00017783,2]
[388838595,1759410924456,-500.0,0.00017783,2]
[388838596,1759410924482,-500.0,0.00017783,2]
[388838597,1759410924508,-500.0,0.00017783,2]
[388838598,1759410924534,-500.0,0.00017783,2]
[388838599,1759410924560,-500.0,0.00017783,2]
[388838600,1759410924588,-500.0,0.00017783,2]
[388838601,1759410924614,-500.0,0.00017783,2]
[388838602,1759410924639,-561.93309741,0.00017783,2]
[388838603,1759410924664,-500.0,0.00017783,2]
[388838604,1759410924690,-500.0,0.00017783,2]
[388838605,1759410924718,-500.0,0.00017783,2]
[388838606,1759410924745,-500.0,0.00017783,2]
[388838607,1759410924770,-500.0,0.00017783,2]
[388838608,1759410924796,-500.0,0.00017783,2]
[388838609,1759410924822,-354.26569583,0.00017783,2]
[388838610,1759410924848,-500.0,0.00017783,2]
[388838611,1759410924874,-418.92980379,0.00017783,2]
[388838612,1759410924901,-500.0,0.00017783,2]
[388838613,1759410924926,-500.0,0.00017783,2]
[388838614,1759410924951,-325.96826271,0.00017783,2]
[388838615,1759410924977,-500.0,0.00017783,2]
[388838616,1759410925004,-500.0,0.00017783,2]
[388838617,1759410925032,-500.0,0.00017783,2]
[388838618,1759410925058,-500.0,0.00017783,2]
[388838619,1759410925083,-500.0,0.00017783,2]
[388838620,1759410925110,-500.0,0.00017783,2]
[388838621,1759410925135,-500.0,0.00017783,2]
[388838622,1759410925163,-500.0,0.00017783,2]
[388838623,1759410925187,-407.14098997,0.00017783,2]
[388838624,1759410925215,-500.0,0.00017783,2]
[388838625,1759410925247,-500.0,0.00017783,2]
[388838626,1759410925276,-500.0,0.00017783,2]
[388838627,1759410925303,-500.0,0.00017783,2]
[388838628,1759410925329,-500.0,0.00017783,2]
[388838629,1759410925354,-500.0,0.00017783,2]
[388838630,1759410925379,-500.0,0.00017783,2]
[388838631,1759410925405,-500.0,0.00017783,2]
[388838632,1759410925430,-500.0,0.00017783,2]
[388838633,1759410925456,-500.0,0.00017783,2]
[388838634,1759410925481,-500.0,0.00017783,2]
[388838635,1759410925507,-500.0,0.00017783,2]
[388838636,1759410925533,-500.0,0.00017783,2]
[388838637,1759410925561,-500.0,0.00017783,2]
[388838638,1759410925588,-500.0,0.00017783,2]
[388838639,1759410925613,-500.0,0.00017783,2]
[388838640,1759410925641,-625.68679242,0.00017783,2]
[388838641,1759410925668,-500.0,0.00017783,2]
[388838642,1759410925695,-500.0,0.00017783,2]
[388838643,1759410925972,-500.0,0.00017783,2]
[388838644,1759410925999,-500.0,0.00017783,2]
[388838645,1759410926024,-500.0,0.00017783,2]
[388838646,1759410926050,-500.0,0.00017783,2]
[388838647,1759410926076,-231.85307434,0.00017783,2]
[388838648,1759410926100,-200.0,0.00017784,10]
[388838649,1759410926124,-200.0,0.00017784,10]
[388838650,1759410926147,-200.0,0.00017784,10]
[388838651,1759410926172,-200.0,0.00017784,10]
[388838652,1759410926196,-207.921585,0.00017784,10]
[388838653,1759410929540,-4334.02,0.00017784,2]
[388838654,1759410929879,-10000.01,0.00017784,2]
[388838655,1759410930014,-10000.01,0.00017784,2]
[388838656,1759410930148,-10000.01,0.00017784,2]
[388838657,1759410930269,-10000.01,0.00017784,2]
[388838658,1759410930385,-10000.01,0.00017784,2]
[388838659,1759410930502,-10000.01,0.00017784,2]
[388838660,1759410930635,-10000.01,0.00017784,2]
[388838661,1759410930750,-10000.01,0.00017784,2]
[388838662,1759410931706,5000.0,0.00017784,2]
[388838663,1759410933141,-10000.01,0.00017784,2]
[388838664,1759410941479,-32710.23375321,0.00017606,2]
[388838665,1759410941505,-275665.89,0.00017784,2]
[388838666,1759410955578,5000.0,0.00017847,2]
[388838667,1759410959949,300.0,0.000174,2]
[388838668,1759410961895,239.64,0.000177,2]
[388838669,1759410963302,500.0,0.00017773,2]
[388838670,1759410963470,500.0,0.00017773,2]
[388838671,1759410963498,500.0,0.00017773,2]
[388838672,1759410967521,507.30042801,0.00017773,2]
[388838673,1759410979080,2453.06957199,0.00017847,2]
[388838674,1759410979105,2546.93042801,0.00017847,2]
[388838675,1759411002265,5000.0,0.00017847,2]
[388838676,1759411019262,294.6754479,0.000178,2]
[388838677,1759411025260,2158.40412409,0.00017847,2]
[388838678,1759411025286,2841.59587591,0.00017847,2]
[388838679,1759411026880,7158.41412409,0.00017684,2]
[388838680,1759411026906,10000.01,0.00017684,2]
[388838681,1759411026930,10000.01,0.00017684,2]
[388838682,1759411033190,3863.37054996,0.00017507,2]
[388838683,1759411041192,1200.0,0.00017683,2]
[388838684,1759411041338,4936.63945004,0.00017684,2]
[388838685,1759411041360,63.36054996,0.00017684,2]
[388838686,1759411049374,5000.0,0.00017684,2]
[388838687,1759411073254,4936.64945004,0.00017684,2]
[388838688,1759411073283,63.35054996,0.00017684,2]
[388838689,1759411074026,202.21,0.00017674,3]
[388838690,1759411083052,300.0,0.00017683,2]
[388838691,1759411096390,5000.0,0.00017684,2]
[388838692,1759411108251,4434.44945004,0.00017584,2]
[388838693,1759411108278,3505.8368046,0.00017584,2]
[388838694,1759411169776,181.25,0.00028767,120]
[388838695,1759411241549,281.44769541,0.00028767,120]
[388838696,1759411242927,202.0,0.00026,120]
[388838698,1759411316818,5000.0,0.0001652,14]
[388838700,1759411411780,-764.8129853,0.00016495,2]
[388838701,1759411416628,258.84,0.00027397,120]
[388838702,1759411424990,-206.79872179,0.00016661,2]
[388838703,1759411427129,5000.0,0.00016495,2]
[388838705,1759411441983,-298.12395021,0.00016661,2]
[388838706,1759411442012,-259.8903133,0.00016661,2]
[388838707,1759411442721,3852.01,0.00016495,2]
[388838708,1759411450667,5000.0,0.00016661,2]
[388838709,1759411466647,31.97147298,0.00016661,2]
[388838710,1759411466669,976.54335259,0.00016661,2]
[388838711,1759411474758,5000.0,0.00016661,2]
[388838712,1759411484010,163.09328545,0.00016578,2]
[388838713,1759411484583,163.09328544,0.00016648,2]
[388838714,1759411484830,500.0,0.00027397,120]
[388838715,1759411498570,3697.28007652,0.00016661,2]
[388838716,1759411498593,1302.71992348,0.00016661,2]
[388838717,1759411509099,476.74739044,0.00016578,2]
[388838722,1759411521446,5000.0,0.00016578,2]
[388838729,1759411544302,5000.0,0.00016578,2]
[388838730,1759411545326,8892.0,0.00025,30]
[388838733,1759411561943,-177.18,0.00016678,2]
[388838735,1759411567081,0.01,0.00016578,2]
[388838736,1759411567107,4999.99,0.00016578,2]
[388838738,1759411567876,-300.0,0.00016677,2]
[388838739,1759411567901,-1022.82,0.00016678,2]
[388838740,1759411567924,-300.0,0.00016678,2]
[388838741,1759411567948,-300.0,0.00016678,2]
[388838742,1759411567971,-300.0,0.00016678,2]
[388838743,1759411567997,-300.0,0.00016678,2]
[388838744,1759411568023,-1200.0,0.00016678,2]
[388838745,1759411568048,-27863.8354278,0.00016679,2]
[388838746,1759411568073,-207.0238132,0.00016817,2]
[388838747,1759411568099,-1178.90560882,0.00016873,2]
[388838748,1759411568124,-500.0,0.00016973,2]
[388838749,1759411568151,-500.0,0.00016973,2]
[388838750,1759411568179,-500.0,0.00016973,2]
[388838751,1759411568208,-500.0,0.00016973,2]
[388838752,1759411568235,-500.0,0.00016973,2]
[388838753,1759411568261,-500.0,0.00016973,2]
[388838754,1759411568287,-227.61087679,0.00016989,2]
[388838755,1759411568313,-372.67183809,0.00016989,2]
[388838756,1759411568341,-500.0,0.00016989,2]
[388838757,1759411568367,-202.88536252,0.00016989,2]
[388838758,1759411568395,-267.46011,0.00016989,2]
[388838759,1759411568427,-635.82815103,0.00016989,2]
[388838760,1759411568455,-500.0,0.00016989,2]
[388838761,1759411568483,-562.56867924,0.00016989,2]
[388838762,1759411568510,-100000.0,0.0001699,2]
[388838763,1759411568537,-1000.0,0.00017521,2]
[388838764,1759411568561,-1000.0,0.00017521,2]
[388838765,1759411568586,-286.18258929,0.00017521,2]
[388838766,1759411568613,-165.04515382,0.00017573,2]
[388838767,1759411568639,-500.0,0.00017673,2]
[388838768,1759411568666,-500.0,0.00017673,2]
[388838769,1759411568694,-500.0,0.00017673,2]
[388838770,1759411568722,-500.0,0.00017673,2]
[388838771,1759411568754,-500.0,0.00017673,2]
[388838772,1759411568782,-234.91692406,0.00017673,2]
[388838778,1759411569089,-501.00043887,0.00017673,2]
[388838780,1759411569117,-500.0,0.00017673,2]
[388838782,1759411569143,-565.39,0.00017674,3]
[388838784,1759411569171,-328.75,0.00017674,3]
[388838785,1759411569197,-164.38,0.00017674,3]
[388838786,1759411569223,-493.15,0.00017674,3]
[388838787,1759411569251,-253019.57502647,0.00017684,2]
[388838790,1759411572105,195.92,0.000166,2]
[388838792,1759411582327,-500.0,0.00017673,2]
[388838793,1759411582354,-517.42,0.00017674,3]
[388838794,1759411582381,-89821.99084944,0.00017684,2]
[388838796,1759411587383,163.09328544,0.00017994,2]
[388838797,1759411589706,5000.0,0.00018068,2]
[388838801,1759411612277,4836.91671456,0.00018068,2]
[388838802,1759411612302,163.08328544,0.00018068,2]
[388838806,1759411635118,5000.0,0.00018068,2]
[388838810,1759411646969,3527.44464887,0.00017994,2]
[388838815,1759411658294,1309.48206569,0.00018068,2]
[388838816,1759411658319,3690.51793431,0.00018068,2]
[388838817,1759411658685,-150.0,0.00018094,2]
[388838823,1759411677997,210.99096807,0.00025,120]
[388838824,1759411680859,5000.0,0.00018094,2]
[388838833,1759411704132,4700.01,0.00018094,2]
[388838834,1759411704159,299.99,0.00018094,2]
[388838837,1759411711439,556.49332564,0.0002,120]
[388838838,1759411713260,588.47548136,0.00024108,120]
[388838839,1759411713327,425.3330384,0.00025,120]
[388838840,1759411713567,362.76662253,0.00025,120]
[388838842,1759411714721,243.54473533,0.00028,120]
[388838843,1759411714781,150.37676624,0.00025,120]
[388838844,1759411716116,1002.50852582,0.00025,120]
[388838847,1759411716929,206.87104661,0.00027,120]
[388838848,1759411719673,292.89034436,0.00027397,120]
[388838849,1759411719764,190.94627741,0.00025,120]
[388838850,1759411720055,223.74783069,0.0001536,120]
[388838851,1759411720511,513.99182189,0.00025,120]
[388838861,1759411721860,195.38300681,0.0002739,120]
[388838862,1759411722169,717.36544127,0.00026,120]
[388838863,1759411722411,359.21080398,0.00026,120]
[388838864,1759411722860,429.06068685,0.00025,120]
[388838868,1759411724655,187.25390821,0.00028,120]
[388838869,1759411724765,209.48995908,0.00026,120]
[388838870,1759411727101,5000.0,0.00018094,2]
[388838875,1759411749893,4700.02,0.00018094,2]
[388838876,1759411749918,299.98,0.00018094,2]
[388838884,1759411778094,5000.0,0.00018094,2]
[388838889,1759411799963,500.0,0.00027397,120]
[388838890,1759411800821,4700.03,0.00018094,2]
[388838891,1759411800845,299.97,0.00018094,2]
[388838895,1759411824235,5000.0,0.00018094,2]
[388838896,1759411824630,-232.99520652,0.00018221,2]
[388838922,1759411831936,-1428.89306459,0.0001826,2]
[388838923,1759411831946,-1428.89306459,0.00018516,2]
[388838925,1759411831955,-525.3051226,0.0001853,2]
[388838926,1759411831965,-1428.89306459,0.00018687,2]
[388838928,1759411831974,-885.0,0.00018834,2]
[388838929,1759411831984,-300.0,0.00018834,2]
[388838930,1759411831993,-1428.89306459,0.00018909,2]
[388838932,1759411832002,-1719.6013801,0.00019,3]
[388838933,1759411832012,-138.03943021,0.00019044,3]
[388838934,1759411832026,-992.74056979,0.00019044,3]
[388838935,1759411832036,-657.5,0.00019044,3]
[388838936,1759411832046,-328.76,0.00019044,3]
[388838937,1759411832055,-135.39949098,0.00019094,2]
[388838938,1759411832067,-14.60050902,0.00019094,2]
[388838939,1759411832076,-166.0,0.00019166,2]
[388838940,1759411832085,-150.0,0.00019178,2]
[388838942,1759411832094,-300.0,0.00019178,2]
[388838943,1759411832103,-450.0,0.00019178,2]
[388838944,1759411832113,-399.39951598,0.00019178,2]
[388838951,1759411837852,-297.0689855,0.00019166,2]
[388838952,1759411837866,-202.9310145,0.00019166,2]
[388838953,1759411837879,-500.0,0.00019166,2]
[388838954,1759411837891,-490.26415705,0.00019166,2]
[388838955,1759411837906,-9.73584295,0.00019166,2]
[388838956,1759411837917,-500.0,0.00019166,2]
[388838957,1759411837934,-253.15011158,0.00019166,2]
[388838958,1759411837946,-200.60048402,0.00019178,2]
[388838959,1759411837959,-170.12262364,0.00019178,2]
[388838961,1759411837973,-579.87737636,0.00019178,2]
[388838963,1759411837986,-431.84208804,0.00019178,2]
[388838964,1759411838000,-360.25677353,0.00019178,2]
[388838965,1759411838013,-1004.86291792,0.00019178,2]
[388838966,1759411838026,-2020.81292886,0.00019178,2]
[388838967,1759411838038,-500.0,0.000193,2]
[388838968,1759411838050,-500.0,0.000193,2]
[388838969,1759411838062,-180.627606,0.00019337,2]
[388838970,1759411838075,-151.1974153,0.00019355,2]
[388838980,1759411839923,-1277.69564929,0.00019355,2]
[388838981,1759411839935,-399.17391628,0.00019553,2]
[388838982,1759411839950,-1029.71914831,0.00019553,2]
[388838983,1759411839962,-166.0,0.00019714,2]
[388838984,1759411839974,-410.0,0.0001985,2]
[388838985,1759411839986,-161.741,0.0001985,2]
[388838987,1759411839997,-1428.89306459,0.00019996,2]
[388838988,1759411840009,-1428.89306459,0.00020063,2]
[388838989,1759411840020,-150.0,0.00020094,2]
[388838990,1759411840031,-293.43242757,0.00020192,2]
[388838991,1759411840043,-234.00747223,0.00020192,2]
[388838992,1759411840054,-160.0,0.00020192,2]
[388838993,1759411840066,-160.0,0.00020192,2]
[388838994,1759411840077,-160.0,0.00020192,2]
[388838995,1759411840089,-264.9931764,0.00020262,2]
[388838996,1759411840100,-1428.89306459,0.00020343,2]
[388838997,1759411840112,-500.0,0.0002039,2]
[388838998,1759411840123,-500.0,0.0002039,2]
[388838999,1759411840136,-150.0,0.0002039,2]
[388839000,1759411840147,-500.0,0.00020475,2]
[388839001,1759411840159,-395.90823976,0.00020475,2]
[388839002,1759411840170,-500.0,0.00020475,2]
[388839003,1759411840181,-500.0,0.00020497,2]
[388839004,1759411840192,-300.0,0.00020527,2]
[388839005,1759411840203,-420.0,0.00020532,2]
[388839006,1759411840215,-1428.89306459,0.00020582,2]
[388839007,1759411840227,-150.0,0.00020594,2]
[388839008,1759411840238,-1031.54240777,0.00020671,2]
[388839009,1759411840249,-168.0,0.00020744,2]
[388839010,1759411840261,-500.0,0.00020771,2]
[388839011,1759411840273,-1000.0,0.00020938,2]
[388839012,1759411840284,-531.82103541,0.00020938,2]
[388839013,1759411840295,-500.0,0.00021023,2]
[388839014,1759411840307,-500.0,0.00021023,2]
[388839015,1759411840318,-500.0,0.00021045,2]
[388839016,1759411840329,-1428.89306459,0.00021064,2]
[388839017,1759411840341,-168.0,0.00021066,2]
[388839018,1759411840352,-150.0,0.00021094,2]
[388839019,1759411840365,-168.0,0.00021125,2]
[388839020,1759411840376,-168.0,0.00021168,2]
[388839021,1759411840391,-168.0,0.00021193,2]
[388839022,1759411840402,-1428.89306459,0.00021195,2]
[388839023,1759411840413,-168.0,0.00021218,2]
[388839024,1759411840424,-501.64434681,0.00021411,2]
[388839025,1759411840435,-501.60768823,0.00021411,2]
[388839026,1759411840447,-500.0,0.00021411,2]